lending/lending_fUSD_20260124
["ID","MTS","AMOUNT","RATE_DAILY","PERIOD"]
[403222233,1769272232955,-4999.99,0.00011368,2]
[403222234,1769272232964,-2976.33,0.00011368,2]
[403222235,1769272232973,-2519.23023992,0.00011368,2]
[403222236,1769272232986,-15422.3386732,0.00011368,2]
[403222237,1769272232998,-1669.45,0.00011368,2]
[403222238,1769272233028,-1926.82,0.00011368,2]
[403222239,1769272233120,-11188.73108688,0.00011368,2]
[403222240,1769272233131,-9999.99,0.00011368,2]
[403222241,1769272233140,-200.0,0.00011368,2]
[403222242,1769272233150,-151.0,0.00011368,2]
[403222243,1769272233160,-151.0,0.00011368,2]
[403222244,1769272233170,-151.0,0.00011368,2]
[403222245,1769272233179,-151.0,0.00011368,2]
[403222246,1769272233188,-151.0,0.00011368,2]
[403222247,1769272233197,-151.0,0.00011368,2]
[403222248,1769272233207,-151.0,0.00011368,2]
[403222249,1769272233217,-151.0,0.00011368,2]
[403222250,1769272233226,-151.0,0.00011368,2]
[403222251,1769272233235,-151.0,0.00011368,2]
[403222252,1769272233244,-151.0,0.00011368,2]
[403222253,1769272233254,-200.0,0.00011368,2]
[403222254,1769272233263,-151.0,0.00011368,2]
[403222255,1769272233273,-151.0,0.00011368,2]
[403222256,1769272233283,-500.0,0.00011368,2]
[403222257,1769272233292,-500.0,0.00011368,2]
[403222258,1769272233302,-500.0,0.00011368,2]
[403222259,1769272233312,-500.0,0.00011368,2]
[403222260,1769272233321,-500.0,0.00011368,2]
[403222261,1769272233330,-500.0,0.00011368,2]
[403222262,1769272233340,-500.0,0.00011368,2]
[403222263,1769272233349,-200.0,0.00011368,2]
[403222264,1769272233359,-500.0,0.00011368,2]
[403222265,1769272233368,-151.0,0.00011368,2]
[403222266,1769272233377,-151.0,0.00011368,2]
[403222267,1769272233387,-500.0,0.00011368,2]
[403222268,1769272233396,-500.0,0.00011368,2]
[403222269,1769272233405,-151.0,0.00011368,2]
[403222270,1769272233415,-500.0,0.00011368,2]
[403222271,1769272233425,-151.0,0.00011368,2]
[403222272,1769272233434,-500.0,0.00011368,2]
[403222273,1769272233444,-151.0,0.00011368,2]
[403222274,1769272233455,-151.0,0.00011368,2]
[403222275,1769272233465,-151.0,0.00011368,2]
[403222276,1769272233475,-151.0,0.00011368,2]
[403222277,1769272233484,-151.0,0.00011368,2]
[403222278,1769272233494,-151.0,0.00011368,2]
[403222279,1769272233503,-151.0,0.00011368,2]
[403222280,1769272233512,-500.0,0.00011368,2]
[403222281,1769272233521,-500.0,0.00011368,2]
[403222282,1769272233531,-500.0,0.00011368,2]
[403222283,1769272233539,-500.0,0.00011368,2]
[403222284,1769272233549,-500.0,0.00011368,2]
[403222285,1769272233559,-500.0,0.00011368,2]
[403222286,1769272233568,-500.0,0.00011368,2]
[403222287,1769272233578,-500.0,0.00011368,2]
[403222288,1769272233587,-500.0,0.00011368,2]
[403222289,1769272233597,-500.0,0.00011368,2]
[403222290,1769272233606,-500.0,0.00011368,2]
[403222291,1769272233615,-1039.51,0.00011374,2]
[403222292,1769272233625,-390.93272555,0.00011374,2]
[403222293,1769272233634,-500.0,0.00011374,2]
[403222294,1769272233644,-624.5227339,0.00011374,2]
[403222295,1769272233653,-613.17275935,0.00011374,2]
[403222296,1769272233662,-500.0,0.00011374,2]
[403222297,1769272233672,-553.23136783,0.00011374,2]
[403222298,1769272233682,-500.0,0.00011374,2]
[403222299,1769272233691,-500.0,0.00011374,2]
[403222300,1769272233700,-500.0,0.00011374,2]
[403222301,1769272233710,-390.93272555,0.00011374,2]
[403222302,1769272233719,-153.83707175,0.00011374,2]
[403222303,1769272233728,-500.0,0.00011375,2]
[403222304,1769272233738,-6214.49287314,0.00011375,2]
[403222305,1769272233752,-1032.00616953,0.00011375,2]
[403222306,1769272233763,-955.4655682,0.00011375,2]
[403222307,1769272234131,-554.71295196,0.00011375,2]
[403222331,1769272238092,-547.81011552,0.00011274,2]
[403222333,1769272238104,-677.47772919,0.00011274,2]
[403222335,1769272238115,-500.0,0.00011274,2]
[403222337,1769272238125,-195.48132803,0.00011274,2]
[403222339,1769272238135,-4365.64134278,0.00011375,2]
[403222344,1769272238167,-575.54487436,0.00011375,2]
[403222515,1769272239739,-294.1265,0.00011274,2]
[403222556,1769272240139,-395.3448895,0.00011274,2]
[403222573,1769272240291,-535.81645521,0.00011274,2]
[403222575,1769272240300,-1225.28784471,0.00011274,2]
[403222577,1769272240309,-1225.28784471,0.00011274,2]
[403222579,1769272240318,-1225.28784471,0.00011274,2]
[403222581,1769272240327,-1225.28784471,0.00011274,2]
[403222583,1769272240337,-1225.28784471,0.00011274,2]
[403222585,1769272240346,-1225.28784471,0.00011274,2]
[403222587,1769272240355,-860599.11167243,0.00011375,2]
[403222589,1769272240364,-184.2881,0.00011375,2]
[403222591,1769272240374,-166.66,0.00011483,2]
[403222593,1769272240383,-1039.51,0.00011648,2]
[403222595,1769272240393,-166.66,0.00011862,2]
[403222597,1769272240403,-415.03,0.00011878,2]
[403222599,1769272240412,-500.0,0.00011916,2]
[403222601,1769272240422,-215.93880926,0.00011916,2]
[403222603,1769272240435,-1039.51,0.00011922,2]
[403222605,1769272240445,-674.13413978,0.00012,2]
[403222607,1769272240455,-18067.5992978,0.00012011,2]
[403222609,1769272240465,-235.25722719,0.00012082,2]
[403222611,1769272240475,-1039.51,0.00012196,2]
[403222613,1769272240484,-537.0,0.000122,2]
[403222615,1769272240494,-250.0,0.00012221,2]
[403222618,1769272240503,-282.957,0.00012221,2]
[403222621,1769272240514,-300.0,0.00012221,2]
[403222624,1769272240523,-1161.89197674,0.00012221,2]
[403222627,1769272240533,-166.66,0.00012241,2]
[403222629,1769272240542,-255.0,0.00012333,2]
[403222630,1769272240552,-1680.0,0.00012389,2]
[403222631,1769272240562,-195.0,0.00012389,2]
[403222632,1769272240571,-195.0,0.00012389,2]
[403222633,1769272240580,-250.0,0.00012389,2]
[403222634,1769272240590,-166.66,0.00012399,2]
[403222635,1769272240599,-500.0,0.00012464,2]
[403222636,1769272240608,-1039.51,0.0001247,2]
[403222637,1769272240618,-415.03,0.00012503,2]
[403222638,1769272240627,-166.66,0.0001262,2]
[403222639,1769272240637,-833.0,0.00012648,2]
[403222640,1769272240646,-166.66,0.0001266,2]
[403222641,1769272240656,-740.0,0.00012673,2]
[403222642,1769272240665,-8761.39597977,0.00012742,2]
[403222643,1769272240674,-1039.51,0.00012744,2]
[403222644,1769272240684,-18067.5992978,0.00012747,2]
[403222645,1769272240693,-166.66,0.00012921,2]
[403222646,1769272240703,-166.66,0.00012999,2]
[403222647,1769272240716,-197.15,0.00013009,2]
[403222648,1769272240726,-500.0,0.00013012,2]
[403222649,1769272240736,-1039.51,0.00013018,2]
[403222651,1769272240746,-648.41,0.00013041,2]
[403222653,1769272240758,-3824.42660411,0.0001305,2]
[403222655,1769272240767,-415.03,0.00013129,2]
[403222657,1769272240779,-1161.89197674,0.00013168,2]
[403222659,1769272240789,-166.66,0.00013182,2]
[403222661,1769272240800,-500.0,0.00013275,2]
[403222663,1769272240809,-150.0,0.00013275,2]
[403222665,1769272240819,-500.0,0.00013275,2]
[403222667,1769272240829,-150.0,0.00013275,2]
[403222669,1769272240840,-150.0,0.00013275,2]
[403222671,1769272240849,-1039.54772844,0.00013292,2]
[403222673,1769272240859,-253.98,0.00013294,2]
[403222675,1769272240869,-500.0,0.0001333,2]
[403222677,1769272240878,-164.21135863,0.0001333,2]
[403222679,1769272240888,-500.0,0.0001333,2]
[403222681,1769272240898,-150.0,0.0001333,2]
[403222683,1769272240907,-150.0,0.0001333,2]
[403222686,1769272240920,-1000.0,0.00013378,2]
[403222688,1769272240930,-166.66,0.00013378,2]
[403222690,1769272240939,-500.0,0.00013385,2]
[403222692,1769272240948,-500.0,0.00013385,2]
[403222694,1769272240958,-3240.0,0.00013425,2]
[403222696,1769272240967,-151.0,0.00013429,2]
[403222698,1769272240977,-151.0,0.0001343,2]
[403222700,1769272240987,-500.0,0.00013439,2]
[403222702,1769272240997,-166.66,0.00013444,2]
[403222704,1769272241006,-8761.39597977,0.00013479,2]
[403222706,1769272241016,-1185.90178612,0.0001348,2]
[403222708,1769272241025,-18067.5992978,0.00013483,2]
[403222711,1769272241035,-322.6107,0.00013491,2]
[403222713,1769272241045,-500.0,0.00013491,2]
[403222715,1769272241055,-500.0,0.00013491,2]
[403222717,1769272241066,-500.0,0.00013491,2]
[403222719,1769272241076,-500.0,0.00013491,2]
[403222721,1769272241085,-500.0,0.00013491,2]
[403222723,1769272241095,-500.0,0.00013491,2]
[403222725,1769272241104,-500.0,0.00013491,2]
[403222727,1769272241118,-500.0,0.00013491,2]
[403222729,1769272241127,-500.0,0.00013491,2]
[403222731,1769272241138,-500.0,0.00013491,2]
[403222733,1769272241148,-500.0,0.00013491,2]
[403222735,1769272241158,-500.0,0.00013491,2]
[403222738,1769272241169,-500.0,0.00013491,2]
[403222740,1769272241179,-500.0,0.00013491,2]
[403222741,1769272241189,-500.0,0.00013491,2]
[403222744,1769272241199,-500.0,0.00013491,2]
[403222746,1769272241208,-500.0,0.00013491,2]
[403222748,1769272241217,-500.0,0.00013491,2]
[403222750,1769272241227,-500.0,0.00013491,2]
[403222752,1769272241236,-500.0,0.00013491,2]
[403222754,1769272241246,-500.0,0.00013491,2]
[403222756,1769272241256,-500.0,0.00013491,2]
[403222758,1769272241266,-500.0,0.00013491,2]
[403222760,1769272241275,-500.0,0.00013491,2]
[403222762,1769272241284,-500.0,0.00013491,2]
[403222764,1769272241294,-500.0,0.00013491,2]
[403222766,1769272241303,-500.0,0.00013491,2]
[403222768,1769272241315,-500.0,0.00013491,2]
[403222770,1769272241324,-500.0,0.00013491,2]
[403222772,1769272241333,-500.0,0.00013491,2]
[403222774,1769272241343,-578.20924308,0.00013491,2]
[403222776,1769272241353,-174.61919141,0.00013491,2]
[403222778,1769272241362,-500.0,0.00013491,2]
[403222780,1769272241372,-500.0,0.00013491,2]
[403222782,1769272241381,-500.0,0.00013491,2]
[403222784,1769272241391,-250.0,0.00013491,2]
[403222787,1769272241401,-250.0,0.00013491,2]
[403222789,1769272241411,-250.0,0.00013491,2]
[403222791,1769272241421,-250.0,0.00013491,2]
[403222793,1769272241430,-151.0,0.00013491,2]
[403222795,1769272241440,-250.0,0.00013491,2]
[403222797,1769272241450,-343.10236963,0.00013491,2]
[403222799,1769272241459,-855.68236364,0.00013491,2]
[403222801,1769272241468,-854.2589148,0.00013491,2]
[403222803,1769272241478,-151.0,0.00013491,2]
[403222805,1769272241487,-151.0,0.00013491,2]
[403222807,1769272241497,-250.0,0.00013491,2]
[403222809,1769272241506,-151.0,0.00013491,2]
[403222811,1769272241516,-250.0,0.00013491,2]
[403222813,1769272241526,-151.0,0.00013491,2]
[403222815,1769272241536,-250.0,0.00013491,2]
[403222817,1769272241545,-151.0,0.00013491,2]
[403222819,1769272241554,-250.0,0.00013491,2]
[403222821,1769272241564,-151.0,0.00013491,2]
[403222823,1769272241574,-250.0,0.00013491,2]
[403222825,1769272241583,-151.0,0.00013491,2]
[403222827,1769272241593,-301.96560903,0.00013491,2]
[403222829,1769272241602,-151.0,0.00013491,2]
[403222831,1769272241611,-151.0,0.00013491,2]
[403222833,1769272241620,-151.0,0.00013491,2]
[403222835,1769272241629,-151.0,0.00013491,2]
[403222837,1769272241639,-250.0,0.00013491,2]
[403222839,1769272241648,-250.0,0.00013491,2]
[403222841,1769272241658,-250.0,0.00013491,2]
[403222843,1769272241667,-250.0,0.00013491,2]
[403222845,1769272241677,-312.60820425,0.00013491,2]
[403222848,1769272241696,-5432.0,0.00013491,2]
[403222850,1769272241706,-433.0,0.00013494,2]
[403222852,1769272241715,-500.0,0.00013494,2]
[403222854,1769272241724,-500.0,0.00013549,2]
[403222856,1769272241734,-300.0,0.00013604,2]
[403222858,1769272241743,-2351.0,0.00013628,2]
[403222860,1769272241755,-1102.07325121,0.00013697,3]
[403222862,1769272241765,-500.0,0.00013698,2]
[403222864,1769272241774,-500.0,0.00013698,2]
[403222866,1769272241783,-500.0,0.00013698,2]
[403222868,1769272241794,-500.0,0.00013698,2]
[403222870,1769272241803,-500.0,0.00013698,2]
[403222872,1769272241813,-500.0,0.00013698,2]
[403222874,1769272241822,-500.0,0.00013698,2]
[403222876,1769272241832,-500.0,0.00013698,2]
[403222879,1769272241842,-500.0,0.00013698,2]
[403222881,1769272241852,-500.0,0.00013698,2]
[403222883,1769272241861,-500.0,0.00013698,2]
[403222885,1769272241870,-593.61150569,0.00013698,2]
[403222887,1769272241879,-233.17455593,0.00013698,2]
[403222889,1769272241889,-775.94,0.00013698,2]
[403222891,1769272241898,-775.94,0.00013698,2]
[403222893,1769272241907,-775.94,0.00013698,2]
[403222895,1769272241917,-775.94,0.00013698,2]
[403222897,1769272241927,-165.97106181,0.00013698,2]
[403222899,1769272241937,-200.0,0.00013699,2]
[403222901,1769272241947,-166.66,0.00013705,2]
[403222903,1769272241956,-1235.01019802,0.00013716,2]
[403222905,1769272241966,-415.03,0.00013754,2]
[403222907,1769272241976,-181.08010149,0.00014039,2]
[403222909,1769272241985,-885.86649465,0.00014039,2]
[403222911,1769272241997,-8761.39597977,0.00014216,2]
[403222913,1769272242006,-18067.5992978,0.00014219,2]
[403222915,1769272242016,-415.03,0.00014379,2]
[403222917,1769272242025,-3730.39828202,0.0001439,2]
[403222920,1769272242037,-1102.0,0.00014438,2]
[403222922,1769272242047,-187.78006525,0.00014587,2]
[403222924,1769272242056,-918.64355495,0.00014587,2]
[403222926,1769272242065,-152.0,0.00014626,3]
[403222928,1769272242075,-194.93473074,0.00014755,2]
[403222930,1769272242085,-736.0,0.00014756,2]
[403222932,1769272242095,-334.5472959,0.0001486,2]
[403222934,1769272242104,-250.0,0.00014882,2]
[403222936,1769272242114,-152.0,0.00014946,4]
[403222938,1769272242124,-8761.39597977,0.00014952,2]
[403222940,1769272242134,-18067.5992978,0.00014956,2]
[403222942,1769272242143,-3292.0,0.00014991,2]
[403222944,1769272242152,-6210.2490806,0.00015,2]
[403222946,1769272242162,-17082.1488124,0.00015,2]
[403222948,1769272242172,-415.03,0.00015004,2]
[403222950,1769272242181,-194.72792766,0.00015135,2]
[403222952,1769272242190,-952.63336648,0.00015135,2]
[403222954,1769272242202,-1102.0,0.00015198,2]
[403222956,1769272242211,-152.0,0.00015266,5]
[403222958,1769272242221,-508.06724516,0.000154,2]
[403222961,1769272242235,-194.93473072,0.00015541,2]
[403222963,1769272242245,-152.0,0.00015586,6]
[403222965,1769272242255,-415.03,0.00015629,2]
[403222967,1769272242266,-478.76391927,0.00015642,2]
[403222969,1769272242276,-201.93286099,0.00015683,2]
[403222971,1769272242285,-987.88080104,0.00015683,2]
[403222973,1769272242295,-8761.39597977,0.00015689,2]
[403222976,1769272242305,-18067.5992978,0.00015692,2]
[403222979,1769272242315,-197.15,0.00015737,2]
[403222982,1769272242325,-193.38072693,0.00015807,2]
[403222986,1769272242335,-501.32971868,0.00015873,2]
[403222989,1769272242345,-500.0,0.00015873,2]
[403222992,1769272242354,-500.0,0.00015873,2]
[403222995,1769272242364,-177.5178643,0.00015873,2]
[403222997,1769272242374,-501.22866478,0.00015873,2]
[403222999,1769272242384,-170.17092774,0.00015873,2]
[403223001,1769272242394,-500.0,0.00015873,2]
[403223003,1769272242403,-167.94526228,0.00015873,2]
[403223005,1769272242413,-500.0,0.00015873,2]
[403223007,1769272242423,-500.0,0.00015873,2]
[403223009,1769272242433,-500.0,0.00015873,2]
[403223011,1769272242443,-164.50729817,0.00015873,2]
[403223013,1769272242454,-166.2984837,0.00015873,2]
[403223016,1769272242464,-500.0,0.00015873,2]
[403223018,1769272242474,-500.0,0.00015873,2]
[403223020,1769272242484,-500.0,0.00015873,2]
[403223022,1769272242494,-500.0,0.00015873,2]
[403223024,1769272242504,-173.62225723,0.00015873,2]
[403223026,1769272242514,-567.68971129,0.00015873,2]
[403223028,1769272242523,-500.0,0.00015873,2]
[403223030,1769272242533,-582.09385403,0.00015873,2]
[403223032,1769272242544,-278.24022797,0.00015873,2]
[403223034,1769272242554,-502.79552946,0.00015873,2]
[403223036,1769272242563,-500.0,0.00015873,2]
[403223039,1769272242573,-163.72504406,0.00015873,2]
[403223042,1769272242582,-500.0,0.00015873,2]
[403223045,1769272242592,-500.0,0.00015873,2]
[403223048,1769272242601,-500.0,0.00015873,2]
[403223051,1769272242611,-500.0,0.00015873,2]
[403223054,1769272242621,-500.0,0.00015873,2]
[403223056,1769272242631,-225.21984276,0.00015873,2]
[403223058,1769272242641,-500.0,0.00015873,2]
[403223060,1769272242650,-500.0,0.00015873,2]
[403223062,1769272242659,-166.22451781,0.00015873,2]
[403223064,1769272242669,-500.0,0.00015873,2]
[403223066,1769272242679,-500.0,0.00015873,2]
[403223068,1769272242688,-166.64412679,0.00015873,2]
[403223070,1769272242697,-500.0,0.00015873,2]
[403223072,1769272242707,-500.0,0.00015873,2]
[403223074,1769272242717,-500.0,0.00015873,2]
[403223076,1769272242727,-169.48430069,0.00015873,2]
[403223078,1769272242736,-500.0,0.00015873,2]
[403223080,1769272242747,-500.0,0.00015873,2]
[403223082,1769272242759,-501.08182749,0.00015873,2]
[403223084,1769272242768,-500.0,0.00015873,2]
[403223086,1769272242778,-500.0,0.00015873,2]
[403223088,1769272242788,-500.0,0.00015873,2]
[403223090,1769272242798,-500.0,0.00015873,2]
[403223092,1769272242808,-217.42155575,0.00015873,2]
[403223094,1769272242818,-500.0,0.00015873,2]
[403223096,1769272242829,-500.0,0.00015873,2]
[403223098,1769272242839,-152.0,0.00015906,7]
[403223101,1769272242851,-1000.0,0.00015918,2]
[403223103,1769272242861,-175.49,0.00015934,2]
[403223105,1769272242870,-151.0,0.00015948,2]
[403223107,1769272242879,-43947.56453849,0.00015951,2]
[403223109,1769272242889,-197.12873386,0.00015951,2]
[403223111,1769272242899,-1102.0,0.00015958,2]
[403223113,1769272242909,-76490.47234941,0.0001599,2]
[403223115,1769272242923,-250.0,0.0001599,2]
[403223117,1769272242934,-79166.40800599,0.00016,4]
[403223119,1769272242943,-253.570956,0.00016,2]
[403223121,1769272242953,-150.0,0.00016,2]
[403223123,1769272242963,-478.76391924,0.00016018,2]
[403223125,1769272242972,-500.0,0.00016038,2]
[403223127,1769272242981,-500.0,0.00016038,2]
[403223129,1769272242991,-775.94,0.00016038,2]
[403223131,1769272243000,-150.0,0.00016038,2]
[403223133,1769272243010,-512.40415127,0.00016038,2]
[403223135,1769272243019,-249417.01,0.00016039,2]
[403223137,1769272243029,-163.46,0.000161,2]
[403223139,1769272243038,-150.0,0.000161,2]
[403223141,1769272243048,-315.0,0.00016143,2]
[403223144,1769272243057,-5000.00426637,0.000162,5]
[403223146,1769272243066,-150.0,0.000162,2]
[403223148,1769272243075,-152.0,0.00016226,8]
[403223150,1769272243084,-346.92554585,0.00016229,2]
[403223152,1769272243094,-599.60298507,0.0001623,2]
[403223154,1769272243103,-5432.0,0.0001623,2]
[403223156,1769272243112,-209.40437684,0.00016231,2]
[403223158,1769272243121,-1024.43239068,0.00016231,2]
[403223160,1769272243130,-16197.82,0.00016252,2]
[403223162,1769272243140,-415.03,0.00016254,2]
[403223164,1769272243150,-150.0,0.000163,2]
[403223166,1769272243159,-159.59843399,0.00016319,2]
[403223168,1769272243169,-194.93473072,0.00016328,2]
[403223170,1769272243179,-500.0,0.00016356,2]
[403223172,1769272243189,-500.0,0.00016356,2]
[403223174,1769272243198,-478.76391924,0.00016395,2]
[403223176,1769272243208,-150.0,0.000164,2]
[403223178,1769272243217,-775.94,0.0001642,2]
[403223180,1769272243226,-1000.0,0.00016421,2]
[403223182,1769272243236,-1000.0,0.00016421,2]
[403223184,1769272243246,-607.15821099,0.00016421,2]
[403223187,1769272243256,-542.33856448,0.00016421,2]
[403223189,1769272243265,-544.47711737,0.00016421,2]
[403223191,1769272243275,-1000.0,0.00016421,2]
[403223193,1769272243284,-1000.0,0.00016421,2]
[403223195,1769272243294,-1000.0,0.00016421,2]
[403223197,1769272243303,-1000.0,0.00016421,2]
[403223199,1769272243312,-505.83466941,0.00016421,2]
[403223201,1769272243322,-1000.0,0.00016421,2]
[403223203,1769272243332,-1000.0,0.00016421,2]
[403223205,1769272243342,-1000.0,0.00016421,2]
[403223207,1769272243351,-1000.0,0.00016421,2]
[403223209,1769272243360,-1000.0,0.00016421,2]
[403223211,1769272243370,-1000.0,0.00016421,2]
[403223213,1769272243379,-1000.0,0.00016421,2]
[403223215,1769272243389,-1000.0,0.00016421,2]
[403223217,1769272243399,-1000.0,0.00016421,2]
[403223219,1769272243408,-1000.0,0.00016421,2]
[403223221,1769272243418,-1000.0,0.00016421,2]
[403223223,1769272243428,-1000.0,0.00016421,2]
[403223225,1769272243438,-1007.32533855,0.00016421,2]
[403223227,1769272243447,-1000.0,0.00016421,2]
[403223229,1769272243458,-303.1127939,0.00016421,2]
[403223231,1769272243467,-1000.0,0.00016421,2]
[403223234,1769272243477,-1000.0,0.00016421,2]
[403223236,1769272243487,-239.10627716,0.00016421,2]
[403223238,1769272243497,-1000.0,0.00016421,2]
[403223240,1769272243506,-1000.0,0.00016421,2]
[403223242,1769272243515,-1000.0,0.00016421,2]
[403223244,1769272243525,-1000.0,0.00016421,2]
[403223246,1769272243535,-1000.0,0.00016426,2]
[403223248,1769272243545,-8761.39597977,0.00016426,2]
[403223250,1769272243554,-18067.5992978,0.00016428,2]
[403223252,1769272243564,-500.0,0.00016437,2]
[403223254,1769272243573,-500.0,0.00016437,2]
[403223256,1769272243583,-197.58025142,0.00016438,2]
[403223258,1769272243592,-500.0,0.00016438,2]
[403223260,1769272243602,-316.743665,0.00016438,2]
[403223262,1769272243611,-1674.68675209,0.00016438,2]
[403223264,1769272243620,-1674.68675209,0.00016438,2]
[403223266,1769272243630,-1674.68675209,0.00016438,2]
[403223268,1769272243639,-1674.68675209,0.00016438,2]
[403223270,1769272243649,-1674.68675209,0.00016438,2]
[403223272,1769272243658,-1674.68675209,0.00016438,2]
[403223274,1769272243668,-1674.68675209,0.00016438,2]
[403223276,1769272243677,-1674.68675209,0.00016438,2]
[403223278,1769272243687,-1674.68675209,0.00016438,2]
[403223280,1769272243696,-1674.68675209,0.00016438,2]
[403223282,1769272243706,-1674.68675209,0.00016438,2]
[403223284,1769272243715,-1674.68675209,0.00016438,2]
[403223286,1769272243724,-1674.68675209,0.00016438,2]
[403223288,1769272243734,-1674.68675209,0.00016438,2]
[403223290,1769272243743,-500.0,0.00016438,2]
[403223293,1769272243753,-500.0,0.00016438,2]
[403223295,1769272243766,-500.0,0.00016438,2]
[403223297,1769272243775,-500.0,0.00016438,2]
[403223299,1769272243785,-500.0,0.00016438,2]
[403223301,1769272243795,-500.0,0.00016438,2]
[403223303,1769272243805,-500.0,0.00016438,2]
[403223305,1769272243815,-500.0,0.00016438,2]
[403223307,1769272243824,-500.0,0.00016438,2]
[403223309,1769272243834,-500.0,0.00016438,2]
[403223311,1769272243844,-500.0,0.00016438,2]
[403223313,1769272243854,-500.0,0.00016438,2]
[403223315,1769272243864,-500.0,0.00016438,2]
[403223317,1769272243874,-500.0,0.00016438,2]
[403223319,1769272243883,-500.0,0.00016438,2]
[403223321,1769272243893,-500.0,0.00016438,2]
[403223323,1769272243902,-500.0,0.00016438,2]
[403223325,1769272243912,-500.0,0.00016438,2]
[403223327,1769272243922,-500.0,0.00016438,2]
[403223330,1769272243932,-500.0,0.00016438,2]
[403223332,1769272243942,-500.0,0.00016438,2]
[403223334,1769272243951,-500.0,0.00016438,2]
[403223336,1769272243962,-500.0,0.00016438,2]
[403223338,1769272243972,-500.0,0.00016438,2]
[403223340,1769272243982,-500.0,0.00016438,2]
[403223342,1769272243991,-500.0,0.00016438,2]
[403223344,1769272244003,-500.0,0.00016438,2]
[403223346,1769272244013,-500.0,0.00016438,2]
[403223348,1769272244023,-500.0,0.00016438,2]
[403223350,1769272244033,-500.0,0.00016438,2]
[403223352,1769272244043,-556.51692413,0.00016438,2]
[403223355,1769272244052,-500.0,0.00016438,2]
[403223357,1769272244062,-500.0,0.00016438,2]
[403223359,1769272244071,-500.0,0.00016438,2]
[403223361,1769272244082,-500.0,0.00016438,2]
[403223363,1769272244092,-1240.74598514,0.00016438,2]
[403223365,1769272244102,-1240.74598514,0.00016438,2]
[403223367,1769272244111,-1240.74598514,0.00016438,2]
[403223369,1769272244122,-1240.74598514,0.00016438,2]
[403223371,1769272244132,-1240.74598514,0.00016438,2]
[403223402,1769272244410,-1240.74598514,0.00016438,2]
[403223404,1769272244420,-1240.74598514,0.00016438,2]
[403223406,1769272244429,-1240.74598514,0.00016438,2]
[403223408,1769272244439,-1240.74598514,0.00016438,2]
[403223410,1769272244448,-1240.74598514,0.00016438,2]
[403223412,1769272244457,-1240.74598514,0.00016438,2]
[403223414,1769272244467,-1240.74598514,0.00016438,2]
[403223416,1769272244475,-1240.74598514,0.00016438,2]
[403223418,1769272244485,-1240.74598514,0.00016438,2]
[403223420,1769272244495,-1240.74598514,0.00016438,2]
[403223422,1769272244504,-1240.74598514,0.00016438,2]
[403223424,1769272244514,-1240.74598514,0.00016438,2]
[403223426,1769272244523,-1240.74598514,0.00016438,2]
[403223428,1769272244532,-1240.74598514,0.00016438,2]
[403223430,1769272244542,-1240.74598514,0.00016438,2]
[403223432,1769272244551,-1240.74598514,0.00016438,2]
[403223434,1769272244560,-1240.74598514,0.00016438,2]
[403223436,1769272244569,-1240.74598514,0.00016438,2]
[403223438,1769272244579,-1240.74598514,0.00016438,2]
[403223440,1769272244588,-1240.74598514,0.00016438,2]
[403223442,1769272244598,-1240.74598514,0.00016438,2]
[403223443,1769272244607,-1240.74598514,0.00016438,2]
[403223444,1769272244616,-1240.74598514,0.00016438,2]
[403223445,1769272244625,-1240.74598514,0.00016438,2]